fUST/lending_fUST_20241228
["ID","MTS","AMOUNT","RATE_DAILY","PERIOD"]
[346862961,1735333763481,-609.8,0.00017757,2]
[346862962,1735333763504,-3623.71,0.00017783,2]
[346862963,1735333763524,-500.0,0.00017808,4]
[346862964,1735333763543,-268.87,0.00018,2]
[346862965,1735333763564,-2755.15602036,0.00018056,2]
[346862966,1735333763600,421.444504,0.00012825,2]
[346862967,1735333763687,421.444504,0.00013673,2]
[346862968,1735333763730,500.0,0.00011482,2]
[346862969,1735333763815,417.75753863,0.00011482,2]
[346862970,1735333766803,500.0,0.00011482,2]
[346862971,1735333767051,500.0,0.00011756,2]
[346862972,1735333767301,500.0,0.0001203,2]
[346862973,1735333767573,500.0,0.00012304,2]
[346862974,1735333767825,500.0,0.00012578,2]
[346862975,1735333768109,453.0,0.00012852,2]
[346862976,1735333770122,-212.93855234,0.00017209,2]
[346862977,1735333772033,151.0,0.00012825,2]
[346862978,1735333772401,151.0,0.00013673,2]
[346862979,1735333772740,500.0,0.00011482,2]
[346862980,1735333773016,500.0,0.00011756,2]
[346862981,1735333773242,255.2,0.0001203,2]
[346862982,1735333775466,500.0,0.00011482,2]
[346862983,1735333775716,154.956363,0.00012851,2]
[346862984,1735333776118,154.956363,0.00013674,2]
[346862985,1735333776594,151.0,0.00012825,2]
[346862986,1735333776770,151.0,0.00013673,2]
[346862987,1735333777411,500.0,0.00011482,2]
[346862988,1735333779152,500.0,0.00011482,2]
[346862989,1735333779413,500.0,0.00011756,2]
[346862990,1735333779656,500.0,0.0001203,2]
[346862991,1735333779774,154.956363,0.00012851,2]
[346862992,1735333779913,500.0,0.00012304,2]
[346862993,1735333780177,500.0,0.00012578,2]
[346862994,1735333780218,154.956363,0.00013674,2]
[346862995,1735333780478,538.44,0.00012852,2]
[346862996,1735333784878,500.0,0.00011482,2]
[346862997,1735333785124,607.89507429,0.00011756,2]
[346862998,1735333785960,500.0,0.00011482,2]
[346862999,1735333787689,500.0,0.00011482,2]
[346863000,1735333787972,206.7,0.00011756,2]
[346863001,1735333790389,217.825635,0.00012825,2]
[346863002,1735333790873,217.825635,0.00013673,2]
[346863003,1735333791054,500.0,0.00011482,2]
[346863004,1735333794542,500.0,0.00011482,2]
[346863005,1735333794828,500.0,0.00011756,2]
[346863006,1735333795114,552.35,0.0001203,2]
[346863007,1735333795271,500.0,0.00011482,2]
[346863008,1735333795520,500.0,0.00011756,2]
[346863009,1735333795814,217.825635,0.00012825,2]
[346863010,1735333796386,217.825635,0.00013673,2]
[346863011,1735333797430,500.0,0.00011482,2]
[346863012,1735333797675,500.0,0.00011756,2]
[346863013,1735333797937,500.0,0.0001203,2]
[346863014,1735333798190,464.68,0.00012304,2]
[346863015,1735333799689,500.0,0.00011481,2]
[346863016,1735333799950,500.0,0.00011755,2]
[346863017,1735333801771,500.0,0.00011482,2]
[346863018,1735333802032,500.0,0.00011756,2]
[346863019,1735333805418,500.0,0.00011482,2]
[346863020,1735333805631,500.0,0.00011482,2]
[346863021,1735333805728,500.0,0.00011756,2]
[346863022,1735333805804,500.0,0.00011482,2]
[346863024,1735333805968,500.0,0.0001203,2]
[346863025,1735333806085,500.0,0.00011756,2]
[346863026,1735333806332,500.0,0.00012304,2]
[346863027,1735333806363,500.0,0.00011756,2]
[346863028,1735333806501,500.0,0.00012578,2]
[346863029,1735333806530,500.0,0.0001203,2]
[346863030,1735333806740,500.0,0.00012852,2]
[346863032,1735333807104,606.65762248,0.00013126,2]
[346863033,1735333811676,444.2,0.00011482,2]
[346863034,1735333813784,241.593755,0.00012851,2]
[346863035,1735333814026,241.593755,0.00013674,2]
[346863036,1735333815349,500.0,0.00011481,2]
[346863037,1735333815594,467.87646299,0.00011755,2]
[346863038,1735333816644,500.0,0.00011482,2]
[346863039,1735333816906,500.0,0.00011756,2]
[346863040,1735333817159,500.0,0.00011482,2]
[346863041,1735333817399,500.0,0.00011756,2]
[346863042,1735333817774,241.593755,0.00012851,2]
[346863043,1735333818092,241.593755,0.00013674,2]
[346863044,1735333828839,872.55,0.00012551,2]
[346863045,1735333830101,872.55,0.00012825,2]
[346863046,1735333830856,872.55,0.00013099,2]
[346863047,1735333831526,872.55,0.00013373,2]
[346863071,1735333832162,872.55,0.00013647,2]
[346863093,1735333832395,-500.0,0.00016438,2]
[346863095,1735333832406,-154.956363,0.00016961,2]
[346863097,1735333832415,-154.956363,0.00016961,2]
[346863099,1735333832424,-241.593755,0.00016961,2]
[346863101,1735333832433,-241.593755,0.00016961,2]
[346863103,1735333832443,-208.50595166,0.00017209,2]
[346863105,1735333832452,-151.0,0.00017209,2]
[346863107,1735333832462,-151.0,0.00017209,2]
[346863109,1735333832471,-217.825635,0.00017209,2]
[346863111,1735333832480,-217.825635,0.00017209,2]
[346863113,1735333832490,-500.0,0.00017808,4]
[346863115,1735333832499,-241.99,0.00018,2]
[346863117,1735333832508,-1999.0,0.00018246,5]
[346863119,1735333832518,-1999.0,0.00018246,5]
[346863121,1735333832528,-1999.0,0.00018246,5]
[346863123,1735333832538,-1999.0,0.00018246,5]
[346863125,1735333832548,-1999.0,0.00018246,5]
[346863127,1735333832557,-1999.0,0.00018246,5]
[346863129,1735333832566,-1999.0,0.00018246,5]
[346863131,1735333832575,-1999.0,0.00018246,5]
[346863133,1735333832585,-1999.0,0.00018246,5]
[346863135,1735333832595,-1999.0,0.00018246,5]
[346863137,1735333832604,-1999.0,0.00018246,5]
[346863139,1735333832613,-1999.0,0.00018246,5]
[346863141,1735333832623,-238.01129206,0.00018246,5]
[346863143,1735333832632,-151.0,0.00018246,2]
[346863145,1735333832642,-1503.549257,0.00018246,2]
[346863147,1735333832651,-1503.549257,0.00018246,2]
[346863149,1735333832660,-370.83527,0.00018246,2]
[346863151,1735333832669,-370.83527,0.00018246,2]
[346863153,1735333832679,-174.516358,0.00018246,2]
[346863155,1735333832688,-174.516358,0.00018246,2]
[346863157,1735333832697,-1029.63981,0.00018246,2]
[346863159,1735333832706,-1029.63981,0.00018246,2]
[346863161,1735333832716,-500.0,0.0001863,2]
[346863163,1735333832725,-500.0,0.0001863,2]
[346863165,1735333832735,-500.96165095,0.0001863,2]
[346863167,1735333832745,-2586.50462749,0.000189,2]
[346863169,1735333832755,-500.0,0.00019178,6]
[346863171,1735333832765,-231.940774,0.00019178,2]
[346863173,1735333832774,-620.91,0.0001922,2]
[346863175,1735333832784,-3710.3326441,0.00019324,2]
[346863177,1735333832793,-1697.157973,0.00019324,2]
[346863179,1735333832802,-1697.157973,0.00019324,2]
[346863181,1735333832811,-229.385236,0.00019324,2]
[346863183,1735333832820,-229.385236,0.00019324,2]
[346863185,1735333832830,-154.956363,0.00019324,2]
[346863187,1735333832840,-154.956363,0.00019324,2]
[346863189,1735333832849,-241.593755,0.00019324,2]
[346863191,1735333832858,-241.593755,0.00019324,2]
[346863193,1735333832868,-152.0,0.0001976,2]
[346863195,1735333832877,-151.0,0.00019883,7]
[346863197,1735333832886,-156.0,0.00019975,2]
[346863199,1735333832896,-9699.824992,0.0002,3]
[346863201,1735333832905,-798.107832,0.0002,2]
[346863203,1735333832914,-798.107832,0.0002,2]
[346863205,1735333832924,-421.444504,0.0002,2]
[346863207,1735333832933,-421.444504,0.0002,2]
[346863209,1735333832943,-151.0,0.0002,2]
[346863211,1735333832953,-151.0,0.0002,2]
[346863213,1735333832962,-217.825635,0.0002,2]
[346863215,1735333832971,-217.825635,0.0002,2]
[346863217,1735333832981,-1987.00623683,0.00020016,2]
[346863219,1735333832990,-843.2527037,0.00020025,2]
[346863221,1735333832999,-511.32454678,0.00020099,2]
[346863223,1735333833008,-502.10993939,0.00020099,2]
[346863225,1735333833019,-500.0,0.00020099,2]
[346863227,1735333833028,-500.0,0.00020099,2]
[346863229,1735333833038,-500.0,0.00020099,2]
[346863231,1735333833047,-500.0,0.00020099,2]
[346863233,1735333833057,-500.0,0.00020099,2]
[346863235,1735333833066,-500.0,0.00020099,2]
[346863237,1735333833076,-500.0,0.00020099,2]
[346863239,1735333833085,-500.0,0.00020099,2]
[346863241,1735333833094,-500.0,0.00020099,2]
[346863243,1735333833104,-500.0,0.00020099,2]
[346863245,1735333833114,-500.0,0.00020099,2]
[346863247,1735333833123,-500.0,0.00020099,2]
[346863249,1735333833132,-500.0,0.00020099,2]
[346863251,1735333833141,-500.0,0.00020099,2]
[346863253,1735333833151,-500.0,0.00020099,2]
[346863255,1735333833160,-500.0,0.00020099,2]
[346863257,1735333833169,-500.0,0.00020099,2]
[346863259,1735333833179,-500.0,0.00020099,2]
[346863261,1735333833192,-500.0,0.00020099,2]
[346863264,1735333833202,-500.0,0.00020099,2]
[346863265,1735333833212,-500.0,0.00020099,2]
[346863267,1735333833221,-500.0,0.00020099,2]
[346863269,1735333833231,-500.0,0.00020099,2]
[346863271,1735333833241,-500.0,0.00020099,2]
[346863273,1735333833251,-500.0,0.00020099,2]
[346863275,1735333833260,-500.0,0.00020099,2]
[346863277,1735333833271,-500.0,0.00020099,2]
[346863279,1735333833281,-500.0,0.00020099,2]
[346863281,1735333833291,-4599.38832551,0.000201,2]
[346863283,1735333833301,-4599.3883255,0.000201,2]
[346863292,1735333833310,-4599.3883255,0.000201,2]
[346863294,1735333833413,-4599.3883255,0.000201,2]
[346863295,1735333833423,-13726.9960516,0.000201,2]
[346863298,1735333833433,-13726.99605157,0.000201,2]
[346863300,1735333833442,-13726.99605157,0.000201,2]
[346863302,1735333833452,-151.0,0.000201,2]
[346863304,1735333833461,-151.0,0.000201,2]
[346863306,1735333833472,-151.0,0.000201,2]
[346863308,1735333833482,-151.0,0.000201,2]
[346863310,1735333833492,-1697.157973,0.000201,2]
[346863312,1735333833502,-1697.157973,0.000201,2]
[346863314,1735333833512,-280.546276,0.000201,2]
[346863316,1735333833522,-151.0,0.000201,2]
[346863318,1735333833532,-151.0,0.000201,2]
[346863320,1735333833541,-1503.549257,0.000201,2]
[346863321,1735333833551,-1503.549257,0.000201,2]
[346863323,1735333833561,-485.602663,0.000201,2]
[346863325,1735333833570,-370.83527,0.000201,2]
[346863327,1735333833580,-485.602663,0.000201,2]
[346863329,1735333833590,-229.385236,0.000201,2]
[346863331,1735333833600,-370.83527,0.000201,2]
[346863333,1735333833610,-229.385236,0.000201,2]
[346863335,1735333833619,-381.626724,0.000201,2]
[346863337,1735333833629,-381.626724,0.000201,2]
[346863339,1735333833640,-151.0,0.000201,2]
[346863341,1735333833653,-174.516358,0.000201,2]
[346863343,1735333833667,-174.516358,0.000201,2]
[346863345,1735333833677,-1029.63981,0.000201,2]
[346863347,1735333833688,-1029.63981,0.000201,2]
[346863349,1735333833698,-798.107832,0.000201,2]
[346863351,1735333833708,-798.107832,0.000201,2]
[346863353,1735333833718,-421.444504,0.000201,2]
[346863355,1735333833728,-421.444504,0.000201,2]
[346863358,1735333833739,-151.0,0.000201,2]
[346863360,1735333833750,-154.956363,0.000201,2]
[346863362,1735333833760,-154.956363,0.000201,2]
[346863364,1735333833770,-154.956363,0.000201,2]
[346863366,1735333833780,-154.956363,0.000201,2]
[346863368,1735333833790,-154.956363,0.000201,2]
[346863370,1735333833800,-154.956363,0.000201,2]
[346863372,1735333833809,-217.825635,0.000201,2]
[346863373,1735333833821,-217.825635,0.000201,2]
[346863375,1735333833830,-241.593755,0.000201,2]
[346863377,1735333833842,-241.593755,0.000201,2]
[346863379,1735333833852,-241.593755,0.000201,2]
[346863381,1735333833862,-241.593755,0.000201,2]
[346863383,1735333833872,-241.593755,0.000201,2]
[346863385,1735333833882,-241.593755,0.000201,2]
[346863387,1735333833892,-160.0,0.00020109,5]
[346863390,1735333833902,-1503.549257,0.00020128,2]
[346863392,1735333833912,-1503.549257,0.00020128,2]
[346863394,1735333833922,-370.83527,0.00020128,2]
[346863395,1735333833932,-370.83527,0.00020128,2]
[346863397,1735333833942,-174.516358,0.00020128,2]
[346863399,1735333833952,-174.516358,0.00020128,2]
[346863401,1735333833962,-1029.63981,0.00020128,2]
[346863403,1735333833971,-1029.63981,0.00020128,2]
[346863405,1735333833980,-13726.99605157,0.00020138,2]
[346863407,1735333833989,-151.0,0.00020138,2]
[346863409,1735333833998,-153.026268,0.00020138,2]
[346863411,1735333834012,-151.0,0.00020138,2]
[346863413,1735333834027,-151.0,0.00020138,2]
[346863415,1735333834047,-151.0,0.00020138,2]
[346863416,1735333834057,-151.0,0.00020138,2]
[346863418,1735333834067,-151.0,0.00020138,2]
[346863420,1735333834077,-155.129185,0.00020138,2]
[346863422,1735333834087,-151.0,0.00020138,2]
[346863424,1735333834096,-155.129185,0.00020138,2]
[346863426,1735333834106,-151.0,0.00020138,2]
[346863428,1735333834116,-151.0,0.00020138,2]
[346863430,1735333834125,-151.0,0.00020138,2]
[346863432,1735333834135,-1697.157973,0.00020138,2]
[346863434,1735333834147,-1697.157973,0.00020138,2]
[346863436,1735333834157,-151.0,0.00020138,2]
[346863438,1735333834168,-151.0,0.00020138,2]
[346863440,1735333834177,-485.602663,0.00020138,2]
[346863442,1735333834189,-485.602663,0.00020138,2]
[346863444,1735333834201,-381.626724,0.00020138,2]
[346863446,1735333834211,-381.626724,0.00020138,2]
[346863448,1735333834221,-151.0,0.00020138,2]
[346863450,1735333834231,-229.385236,0.00020171,2]
[346863452,1735333834241,-229.385236,0.00020171,2]
[346863454,1735333834251,-798.107832,0.00020171,2]
[346863456,1735333834262,-798.107832,0.00020171,2]
[346863458,1735333834272,-421.444504,0.00020171,2]
[346863460,1735333834283,-421.444504,0.00020171,2]
[346863462,1735333834293,-151.0,0.00020171,2]
[346863464,1735333834302,-217.825635,0.00020171,2]
[346863466,1735333834311,-217.825635,0.00020171,2]
[346863467,1735333834321,-2000.0,0.000202,2]
[346863469,1735333834330,-2000.0,0.000202,2]
[346863471,1735333834339,-618.0,0.000202,2]
[346863472,1735333834349,-7996.68853202,0.0002021,2]
[346863473,1735333834358,-154.956363,0.0002021,2]
[346863474,1735333834367,-154.956363,0.0002021,2]
[346863475,1735333834377,-241.593755,0.0002021,2]
[346863476,1735333834386,-241.593755,0.0002021,2]
[346863477,1735333834396,-1200.0,0.00020222,6]
[346863478,1735333834405,-302.0,0.00020227,2]
[346863479,1735333834414,-151.0,0.00020228,7]
[346863480,1735333834423,-151.0,0.00020228,7]
[346863481,1735333834433,-229.385236,0.00020236,2]
[346863482,1735333834443,-229.385236,0.00020236,2]
[346863483,1735333834452,-798.107832,0.00020236,2]
[346863484,1735333834461,-798.107832,0.00020236,2]
[346863485,1735333834470,-421.444504,0.00020236,2]
[346863486,1735333834480,-421.444504,0.00020236,2]
[346863487,1735333834489,-151.0,0.00020236,2]
[346863488,1735333834499,-217.825635,0.00020236,2]
[346863489,1735333834508,-217.825635,0.00020236,2]
[346863490,1735333834517,-151.0,0.00020237,2]
[346863491,1735333834527,-151.0,0.00020237,2]
[346863492,1735333834535,-151.0,0.00020237,2]
[346863493,1735333834545,-151.0,0.00020237,2]
[346863494,1735333834555,-151.0,0.00020237,2]
[346863495,1735333834565,-217.849522,0.00020237,2]
[346863496,1735333834574,-151.0,0.00020237,2]
[346863497,1735333834583,-246.79535,0.00020237,2]
[346863498,1735333834592,-151.0,0.00020237,2]
[346863499,1735333834602,-151.0,0.00020237,2]
[346863501,1735333834612,-155.129185,0.00020237,2]
[346863503,1735333834622,-155.129185,0.00020237,2]
[346863505,1735333834632,-151.0,0.00020237,2]
[346863507,1735333834642,-155.129185,0.00020237,2]
[346863509,1735333834652,-155.129185,0.00020237,2]
[346863511,1735333834662,-151.0,0.00020237,2]
[346863513,1735333834671,-151.0,0.00020237,2]
[346863515,1735333834681,-151.0,0.00020237,2]
[346863517,1735333834690,-151.0,0.00020237,2]
[346863519,1735333834699,-1697.157973,0.00020237,2]
[346863521,1735333834709,-1697.157973,0.00020237,2]
[346863523,1735333834718,-1697.157973,0.00020237,2]
[346863525,1735333834727,-1697.157973,0.00020237,2]
[346863527,1735333834736,-151.0,0.00020237,2]
[346863529,1735333834746,-151.0,0.00020237,2]
[346863531,1735333834755,-151.0,0.00020237,2]
[346863533,1735333834764,-151.0,0.00020237,2]
[346863535,1735333834774,-1503.549257,0.00020237,2]
[346863537,1735333834783,-1503.549257,0.00020237,2]
[346863539,1735333834793,-1503.549257,0.00020237,2]
[346863540,1735333834802,-1503.549257,0.00020237,2]
[346863542,1735333834811,-485.602663,0.00020237,2]
[346863544,1735333834822,-485.602663,0.00020237,2]
[346863547,1735333834832,-370.83527,0.00020237,2]
[346863548,1735333834841,-485.602663,0.00020237,2]
[346863550,1735333834851,-370.83527,0.00020237,2]
[346863552,1735333834860,-485.602663,0.00020237,2]
[346863554,1735333834870,-370.83527,0.00020237,2]
[346863556,1735333834879,-370.83527,0.00020237,2]
[346863558,1735333834888,-381.626724,0.00020237,2]
[346863560,1735333834898,-381.626724,0.00020237,2]
[346863562,1735333834907,-381.626724,0.00020237,2]
[346863564,1735333834917,-381.626724,0.00020237,2]
[346863566,1735333834927,-151.0,0.00020237,2]
[346863568,1735333834936,-151.0,0.00020237,2]
[346863570,1735333834946,-174.516358,0.00020237,2]
[346863572,1735333834955,-174.516358,0.00020237,2]
[346863574,1735333834965,-174.516358,0.00020237,2]
[346863576,1735333834974,-174.516358,0.00020237,2]
[346863578,1735333834984,-1029.63981,0.00020237,2]
[346863580,1735333834994,-1029.63981,0.00020237,2]
[346863582,1735333835003,-1029.63981,0.00020237,2]
[346863583,1735333835013,-1029.63981,0.00020237,2]
[346863584,1735333835022,-151.0,0.00020238,2]
[346863585,1735333835031,-151.0,0.00020238,2]
[346863586,1735333835041,-151.0,0.00020238,2]
[346863588,1735333835051,-151.0,0.00020238,2]
[346863590,1735333835060,-150.23,0.00020238,10]
[346863592,1735333835073,-151.40543675,0.00020238,10]
[346863594,1735333835082,-500.0,0.00020238,10]
[346863595,1735333835096,-201.86550242,0.00020238,10]
[346863596,1735333835106,-150.23,0.00020238,10]
[346863598,1735333835115,-226.50874368,0.00020238,2]
[346863600,1735333835124,-151.0,0.00020263,2]
[346863602,1735333835133,-151.0,0.00020263,2]
[346863604,1735333835142,-151.0,0.00020263,2]
[346863606,1735333835151,-151.0,0.00020263,2]
[346863608,1735333835160,-151.0,0.00020263,2]
[346863610,1735333835169,-151.0,0.00020263,2]
[346863612,1735333835178,-155.518176,0.00020263,2]
[346863614,1735333835188,-151.0,0.00020263,2]
[346863616,1735333835199,-151.0,0.00020263,2]
[346863618,1735333835208,-151.0,0.00020263,2]
[346863620,1735333835218,-151.0,0.00020263,2]
[346863622,1735333835227,-151.0,0.00020263,2]
[346863624,1735333835238,-151.0,0.00020263,2]
[346863625,1735333835247,-151.0,0.00020263,2]
[346863626,1735333835257,-151.0,0.00020263,2]
[346863627,1735333835268,-151.0,0.00020263,2]
[346863628,1735333835277,-151.0,0.00020263,2]
[346863629,1735333835287,-211.31844,0.00020263,2]
[346863630,1735333835296,-155.129185,0.00020263,2]
[346863631,1735333835306,-155.129185,0.00020263,2]
[346863632,1735333835316,-155.129185,0.00020263,2]
[346863633,1735333835325,-155.129185,0.00020263,2]
[346863634,1735333835335,-155.129185,0.00020263,2]
[346863635,1735333835344,-155.129185,0.00020263,2]
[346863636,1735333835353,-155.129185,0.00020263,2]
[346863637,1735333835362,-155.129185,0.00020263,2]
[346863638,1735333835371,-155.129185,0.00020263,2]
[346863639,1735333835380,-155.129185,0.00020263,2]
[346863640,1735333835390,-155.129185,0.00020263,2]
[346863641,1735333835399,-155.129185,0.00020263,2]
[346863642,1735333835408,-155.129185,0.00020263,2]
[346863643,1735333835417,-155.129183,0.00020263,2]
[346863644,1735333835427,-183.897597,0.00020271,2]
[346863645,1735333835436,-151.0,0.00020271,2]
[346863646,1735333835445,-151.0,0.00020271,2]
[346863647,1735333835455,-151.0,0.00020271,2]
[346863648,1735333835464,-151.0,0.00020271,2]
[346863649,1735333835473,-151.0,0.00020271,2]
[346863650,1735333835483,-151.0,0.00020271,2]
[346863651,1735333835492,-151.0,0.00020271,2]
[346863652,1735333835502,-151.0,0.00020271,2]
[346863653,1735333835512,-250.305654,0.00020271,2]
[346863654,1735333835522,-1697.157973,0.00020271,2]
[346863655,1735333835531,-1697.157973,0.00020271,2]
[346863656,1735333835541,-1697.157973,0.00020271,2]
[346863657,1735333835551,-1697.157973,0.00020271,2]
[346863658,1735333835561,-1697.157973,0.00020271,2]
[346863659,1735333835573,-1697.157973,0.00020271,2]
[346863660,1735333835583,-1697.157973,0.00020271,2]
[346863661,1735333835592,-1697.157973,0.00020271,2]
[346863662,1735333835603,-1697.157973,0.00020271,2]
[346863663,1735333835612,-1697.157972,0.00020271,2]
[346863664,1735333835622,-151.0,0.00020271,2]
[346863665,1735333835631,-180.883762,0.00020271,2]
[346863666,1735333835641,-1000.0,0.00020271,2]
[346863667,1735333835720,-1000.0,0.00020271,2]
[346863668,1735333835739,-1000.0,0.00020271,2]
[346863669,1735333835748,-1000.0,0.00020271,2]
[346863670,1735333835758,-1000.0,0.00020271,2]
[346863671,1735333835767,-1000.0,0.00020271,2]
[346863672,1735333835776,-1000.0,0.00020271,2]
[346863673,1735333835786,-1000.0,0.00020271,2]
[346863674,1735333835795,-1000.0,0.00020271,2]
[346863675,1735333835804,-1000.0,0.00020271,2]
[346863676,1735333835814,-1000.0,0.00020271,2]
[346863677,1735333835824,-1000.0,0.00020271,2]
[346863678,1735333835834,-1000.0,0.00020271,2]
[346863679,1735333835843,-1000.0,0.00020271,2]
[346863680,1735333835852,-734.031471,0.00020271,2]
[346863681,1735333835862,-151.0,0.00020271,2]
[346863682,1735333835871,-151.0,0.00020271,2]
[346863683,1735333835880,-151.0,0.00020271,2]
[346863684,1735333835890,-151.0,0.00020271,2]
[346863685,1735333835899,-151.0,0.00020271,2]
[346863686,1735333835908,-151.0,0.00020271,2]
[346863687,1735333835918,-151.0,0.00020271,2]
[346863688,1735333835927,-151.0,0.00020271,2]
[346863689,1735333835937,-1503.549257,0.00020271,2]
[346863690,1735333835947,-1503.549257,0.00020271,2]
[346863691,1735333835956,-211.409969,0.00020271,2]
[346863692,1735333835965,-1503.549257,0.00020271,2]
[346863693,1735333835975,-1503.549257,0.00020271,2]
[346863694,1735333835985,-1503.549257,0.00020271,2]
[346863695,1735333835995,-1503.549257,0.00020271,2]
[346863696,1735333836004,-1503.549257,0.00020271,2]
[346863697,1735333836013,-1503.549257,0.00020271,2]
[346863698,1735333836022,-1503.549257,0.00020271,2]
[346863699,1735333836031,-1503.549263,0.00020271,2]
[346863700,1735333836041,-485.602663,0.00020271,2]
[346863701,1735333836050,-485.602663,0.00020271,2]
[346863702,1735333836060,-485.602663,0.00020271,2]
[346863703,1735333836071,-485.602663,0.00020271,2]
[346863704,1735333836081,-485.602663,0.00020271,2]
[346863705,1735333836090,-485.602663,0.00020271,2]
[346863706,1735333836100,-370.83527,0.00020271,2]
[346863707,1735333836109,-485.602663,0.00020271,2]
[346863708,1735333836119,-370.83527,0.00020271,2]
[346863709,1735333836128,-485.602663,0.00020271,2]
[346863710,1735333836138,-370.83527,0.00020271,2]
[346863711,1735333836148,-370.83527,0.00020271,2]
[346863712,1735333836157,-485.602663,0.00020271,2]
[346863713,1735333836167,-485.602663,0.00020271,2]
[346863714,1735333836177,-370.83527,0.00020271,2]
[346863715,1735333836186,-485.602663,0.00020271,2]
[346863716,1735333836200,-485.602662,0.00020271,2]
[346863717,1735333836209,-229.385236,0.00020271,2]
[346863718,1735333836219,-229.385236,0.00020271,2]
[346863719,1735333836228,-229.385236,0.00020271,2]
[346863720,1735333836239,-229.385236,0.00020271,2]
[346863721,1735333836248,-370.83527,0.00020271,2]
[346863722,1735333836258,-229.385236,0.00020271,2]
[346863723,1735333836269,-370.83527,0.00020271,2]
[346863724,1735333836278,-370.83527,0.00020271,2]
[346863725,1735333836287,-370.83527,0.00020271,2]
[346863726,1735333836296,-370.835261,0.00020271,2]
[346863727,1735333836307,-229.385236,0.00020271,2]
[346863728,1735333836316,-229.385236,0.00020271,2]
[346863729,1735333836328,-229.385236,0.00020271,2]
[346863730,1735333836338,-229.385236,0.00020271,2]
[346863731,1735333836347,-229.385246,0.00020271,2]
[346863732,1735333836357,-381.626724,0.00020271,2]
[346863733,1735333836367,-381.626724,0.00020271,2]
[346863734,1735333836376,-381.626724,0.00020271,2]
[346863735,1735333836386,-381.626724,0.00020271,2]
[346863736,1735333836395,-381.626724,0.00020271,2]
[346863737,1735333836405,-381.626724,0.00020271,2]
[346863738,1735333836415,-381.626724,0.00020271,2]
[346863739,1735333836424,-381.626724,0.00020271,2]
[346863740,1735333836434,-381.626724,0.00020271,2]
[346863741,1735333836444,-381.626724,0.00020271,2]
[346863742,1735333836454,-381.626724,0.00020271,2]
[346863743,1735333836463,-381.626726,0.00020271,2]
[346863744,1735333836473,-151.0,0.00020271,2]
[346863745,1735333836484,-151.0,0.00020271,2]
[346863746,1735333836493,-151.0,0.00020271,2]
[346863747,1735333836502,-160.087137,0.00020271,2]
[346863748,1735333836512,-174.516358,0.00020271,2]
[346863749,1735333836522,-174.516358,0.00020271,2]
[346863750,1735333836531,-174.516358,0.00020271,2]
[346863751,1735333836540,-174.516358,0.00020271,2]
[346863752,1735333836550,-174.516358,0.00020271,2]
[346863753,1735333836560,-174.516358,0.00020271,2]
[346863754,1735333836569,-174.516358,0.00020271,2]
[346863755,1735333836579,-174.516358,0.00020271,2]
[346863756,1735333836589,-174.516358,0.00020271,2]